fUSD/lending_fUSD_20260605
["ID","MTS","AMOUNT","RATE_DAILY","PERIOD"]
[424217942,1780671046000,-151.0,0.00021405,2]
[424217933,1780671046000,-290.26104002,0.00021405,2]
[424217939,1780671046000,-200.0,0.00021405,2]
[424217931,1780671046000,-181.08010149,0.00021405,2]
[424217934,1780671046000,-200.0,0.00021405,2]
[424217930,1780671046000,-9905.59807649,0.00021405,2]
[424217925,1780671046000,-1987.88816018,0.000214,2]
[424217927,1780671046000,-217.15233878,0.00021405,2]
[424217940,1780671046000,-217.15233878,0.00021405,2]
[424217938,1780671046000,-2157.14243826,0.00021405,2]
[424217929,1780671046000,-151.0,0.00021405,2]
[424217953,1780671046000,-12898.39,0.00021706,2]
[424217945,1780671046000,-151.0,0.00021407,2]
[424217937,1780671046000,-500.0,0.00021405,2]
[424217935,1780671046000,-1481.2378076,0.00021405,2]
[424217936,1780671046000,-217.15233878,0.00021405,2]
[424217947,1780671046000,-200.0,0.00021566,2]
[424217956,1780671046000,-210.62881588,0.00021917,2]
[424217948,1780671046000,-1987.88816018,0.000216,2]
[424217955,1780671046000,-2221.17894187,0.000219,2]
[424217958,1780671046000,-5000.0,0.00021918,2]
[424217949,1780671046000,-1274.94,0.00021608,2]
[424217957,1780671046000,-2102.33439099,0.00021918,2]
[424217946,1780671046000,-500.0,0.00021439,2]
[424217926,1780671046000,-2221.17894187,0.000214,2]
[424217944,1780671046000,-5982.98103368,0.00021407,2]
[424217928,1780671046000,-200.0,0.00021405,2]
[424217895,1780671046000,-1278.48651852,0.00021115,2]
[424217924,1780671046000,-4775.8,0.0002137,2]
[424217950,1780671046000,-12649.0,0.00021653,2]
[424217894,1780671046000,-151.0,0.00021077,2]
[424217903,1780671046000,-4989.11878577,0.00021132,2]
[424217896,1780671046000,-3553.0,0.00021121,2]
[424217904,1780671046000,-151.0,0.00021132,2]
[424217898,1780671046000,-1273.0,0.00021121,2]
[424217897,1780671046000,-1357.0,0.00021121,2]
[424217902,1780671046000,-831.51979762,0.00021132,2]
[424217906,1780671046000,-862.28603014,0.00021187,2]
[424217900,1780671046000,-933.0,0.00021121,2]
[424217905,1780671046000,-169.77702836,0.00021144,2]
[424217908,1780671046000,-5173.71618084,0.00021187,2]
[424217901,1780671046000,-419.0,0.00021121,2]
[424217923,1780671046000,-940.83,0.00021369,2]
[424217899,1780671046000,-1227.0,0.00021121,2]
[424217914,1780671046000,-894.19061325,0.00021242,2]
[424217913,1780671046000,-151.61306376,0.00021221,2]
[424217915,1780671046000,-5365.14367954,0.00021242,2]
[424217911,1780671046000,-2221.17894187,0.000212,2]
[424217912,1780671046000,-173.19568044,0.0002122,2]
[424217919,1780671046000,-151.0,0.00021297,2]
[424217916,1780671046000,-151.0,0.00021242,2]
[424217918,1780671046000,-5563.65399568,0.00021297,2]
[424217917,1780671046000,-927.27566594,0.00021297,2]
[424217920,1780671046000,-961.58486558,0.00021352,2]
[424217921,1780671046000,-5769.50919352,0.00021352,2]
[424217932,1780671046000,-771.01748644,0.00021405,2]
[424217922,1780671046000,-151.0,0.00021352,2]
[424217910,1780671046000,-1987.88816018,0.000212,2]
[424217951,1780671046000,-1455.9108136,0.00021687,2]
[424217909,1780671046000,-151.0,0.00021187,2]
[424217952,1780671046000,-2221.17894187,0.000217,2]
[424217999,1780671046000,-217.15233878,0.00022226,2]
[424217987,1780671046000,-1918.0,0.00022,2]
[424217993,1780671046000,-5757.140333,0.00022,2]
[424217986,1780671046000,-917.0,0.00022,2]
[424217994,1780671046000,-1997.75,0.00022,2]
[424217991,1780671046000,-450.0,0.00022,2]
[424217989,1780671046000,-461.0,0.00022,2]
[424218001,1780671046000,-1250.0,0.00022386,2]
[424218006,1780671046000,-1250.0,0.00022386,2]
[424218002,1780671046000,-1250.0,0.00022386,2]
[424218013,1780671046000,-284.98708574,0.00022407,2]
[424218011,1780671046000,-6417.29,0.000224,14]
[424218003,1780671046000,-1250.0,0.00022386,2]
[424218000,1780671046000,-3994.5,0.00022353,2]
[424218007,1780671046000,-1250.0,0.00022386,2]
[424218005,1780671046000,-1250.0,0.00022386,2]
[424218015,1780671046000,-284.98708573,0.00022407,2]
[424218010,1780671046000,-915.0,0.00022386,2]
[424218008,1780671046000,-1250.0,0.00022386,2]
[424218009,1780671046000,-1250.0,0.00022386,2]
[424218025,1780671046000,-829.12830338,0.00022501,2]
[424218016,1780671046000,-1333.7,0.00022466,2]
[424218023,1780671046000,-10652.17309792,0.00022501,2]
[424218019,1780671046000,-1838.7,0.00022466,2]
[424218020,1780671046000,-233.5188934,0.00022501,2]
[424218021,1780671046000,-200.0,0.00022501,2]
[424218024,1780671046000,-194.72792766,0.00022501,2]
[424218022,1780671046000,-151.0,0.00022501,2]
[424218004,1780671046000,-1250.0,0.00022386,2]
[424217996,1780671046000,-1314.09,0.000222,7]
[424218018,1780671046000,-1716.4,0.00022466,2]
[424217998,1780671046000,-160.0,0.00022226,2]
[424217984,1780671046000,-704.0,0.00022,2]
[424217959,1780671046000,-225.18697532,0.00021953,2]
[424217961,1780671046000,-151.0,0.00021953,2]
[424217962,1780671046000,-10272.10520532,0.00021953,2]
[424217963,1780671046000,-187.78006524,0.00021953,2]
[424217965,1780671046000,-301.0006985,0.00021953,2]
[424217960,1780671046000,-200.0,0.00021953,2]
[424217964,1780671046000,-799.54513344,0.00021953,2]
[424217968,1780671046000,-225.18697532,0.00021953,2]
[424217969,1780671046000,-500.0,0.00021953,2]
[424217967,1780671046000,-1536.04360648,0.00021953,2]
[424217971,1780671046000,-200.0,0.00021953,2]
[424217966,1780671046000,-200.0,0.00021953,2]
[424217970,1780671046000,-2236.95670847,0.00021953,2]
[424217954,1780671046000,-1987.88816018,0.000219,2]
[424217973,1780671046000,-745.65223615,0.00021953,2]
[424217972,1780671046000,-225.18697532,0.00021953,2]
[424217997,1780671046000,-156.587,0.00022226,2]
[424217985,1780671046000,-3786.0,0.00022,2]
[424217995,1780671046000,-6155.0,0.00022034,2]
[424217979,1780671046000,-2221.0,0.00022,2]
[424217982,1780671046000,-3475.0,0.00022,2]
[424217978,1780671046000,-1604.0,0.00022,2]
[424217974,1780671046000,-151.0,0.00021953,2]
[424217980,1780671046000,-910.0,0.00022,2]
[424217977,1780671046000,-684.0,0.00022,2]
[424217981,1780671046000,-535.0,0.00022,2]
[424217983,1780671046000,-463.0,0.00022,2]
[424217976,1780671046000,-717.0,0.00022,2]
[424217975,1780671046000,-382.0,0.00022,2]
[424218052,1780671047000,-800.0,0.00022948,8]
[424218050,1780671047000,-800.0,0.00022948,8]
[424218051,1780671047000,-800.0,0.00022948,8]
[424218057,1780671047000,-800.0,0.00022948,8]
[424218056,1780671047000,-800.0,0.00022948,8]
[424218055,1780671047000,-800.0,0.00022948,8]
[424218061,1780671047000,-500.0,0.0002297,2]
[424218065,1780671047000,-500.0,0.0002297,2]
[424218058,1780671047000,-800.0,0.00022948,8]
[424218064,1780671047000,-1000.0,0.0002297,2]
[424218060,1780671047000,-1000.0,0.0002297,2]
[424218066,1780671047000,-500.0,0.0002297,2]
[424218059,1780671047000,-1000.0,0.0002297,2]
[424218063,1780671047000,-500.0,0.0002297,2]
[424218054,1780671047000,-800.0,0.00022948,8]
[424218062,1780671047000,-1000.0,0.0002297,2]
[424218069,1780671047000,-684.0,0.00023,2]
[424218080,1780671047000,-1918.0,0.00023,2]
[424218079,1780671047000,-917.0,0.00023,2]
[424218074,1780671047000,-3475.0,0.00023,2]
[424218067,1780671047000,-382.0,0.00023,2]
[424218053,1780671047000,-800.0,0.00022948,8]
[424218042,1780671047000,-261.22380501,0.0002287,2]
[424218049,1780671047000,-800.0,0.00022948,8]
[424218071,1780671047000,-2221.0,0.00023,2]
[424218027,1780671047000,-200.0,0.00022501,2]
[424218026,1780671047000,-312.13772435,0.00022501,2]
[424218028,1780671047000,-1592.87721992,0.00022501,2]
[424218029,1780671047000,-233.5188934,0.00022501,2]
[424218030,1780671047000,-500.0,0.00022501,2]
[424218031,1780671047000,-2319.72410669,0.00022501,2]
[424218035,1780671047000,-151.0,0.00022501,2]
[424218037,1780671047000,-168.28,0.00022603,2]
[424218038,1780671047000,-498.99321736,0.00022715,2]
[424218034,1780671047000,-773.24136889,0.00022501,2]
[424218033,1780671047000,-233.5188934,0.00022501,2]
[424218039,1780671047000,-2000.0,0.0002281,7]
[424218036,1780671047000,-171.22551541,0.00022594,2]
[424218040,1780671047000,-1000.0,0.0002287,2]
[424218041,1780671047000,-500.0,0.0002287,2]
[424218043,1780671047000,-800.0,0.00022948,8]
[424218047,1780671047000,-800.0,0.00022948,8]
[424218048,1780671047000,-800.0,0.00022948,8]
[424218045,1780671047000,-800.0,0.00022948,8]
[424218046,1780671047000,-800.0,0.00022948,8]
[424218044,1780671047000,-800.0,0.00022948,8]
[424218032,1780671047000,-200.0,0.00022501,2]
[424218070,1780671047000,-1604.0,0.00023,2]
[424218076,1780671047000,-704.0,0.00023,2]
[424218098,1780671047000,-801.85129954,0.00023049,2]
[424218103,1780671047000,-250.0,0.00023079,2]
[424218099,1780671047000,-151.0,0.00023049,2]
[424218105,1780671047000,-1020.8287098,0.00023351,2]
[424218104,1780671047000,-300.0,0.000231,10]
[424218110,1780671047000,-160.0,0.00023595,2]
[424218106,1780671047000,-12898.39,0.00023412,7]
[424218111,1780671047000,-225.18697532,0.00023595,2]
[424218113,1780671047000,-747.80937859,0.00023596,2]
[424218112,1780671047000,-599.60298507,0.00023596,2]
[424218114,1780671047000,-251.11897888,0.00023597,2]
[424218108,1780671047000,-150.52165905,0.00023445,2]
[424218107,1780671047000,-186.18115721,0.00023445,2]
[424218115,1780671047000,-151.0,0.00023597,2]
[424218116,1780671047000,-200.0,0.00023597,2]
[424218117,1780671047000,-209.40437684,0.00023597,2]
[424218118,1780671047000,-891.61887448,0.00023597,2]
[424218121,1780671047000,-1712.93078311,0.00023597,2]
[424218119,1780671047000,-200.0,0.00023597,2]
[424218120,1780671047000,-335.66323249,0.00023597,2]
[424218068,1780671047000,-717.0,0.00023,2]
[424218095,1780671047000,-2405.55389863,0.00023049,2]
[424218094,1780671047000,-500.0,0.00023049,2]
[424218109,1780671047000,-162.380719,0.00023595,2]
[424218101,1780671047000,-150.0,0.00023079,2]
[424218072,1780671047000,-910.0,0.00023,2]
[424218102,1780671047000,-150.0,0.00023079,2]
[424218073,1780671047000,-535.0,0.00023,2]
[424218078,1780671047000,-3949.0,0.00023,2]
[424218075,1780671047000,-463.0,0.00023,2]
[424218077,1780671047000,-3786.0,0.00023,2]
[424218082,1780671047000,-200.0,0.00023,10]
[424218084,1780671047000,-242.15909246,0.00023049,2]
[424218085,1780671047000,-151.0,0.00023049,2]
[424218083,1780671047000,-5757.140333,0.00023,2]
[424218081,1780671047000,-461.0,0.00023,2]
[424218088,1780671047000,-201.93286098,0.00023049,2]
[424218091,1780671047000,-323.68682015,0.00023049,2]
[424218090,1780671047000,-200.0,0.00023049,2]
[424218089,1780671047000,-859.8060506,0.00023049,2]
[424218092,1780671047000,-1651.81367706,0.00023049,2]
[424218087,1780671047000,-11046.30350254,0.00023049,2]
[424218100,1780671047000,-150.0,0.00023079,2]
[424218096,1780671047000,-200.0,0.00023049,2]
[424218086,1780671047000,-200.0,0.00023049,2]
[424218097,1780671047000,-242.15909246,0.00023049,2]
[424218093,1780671047000,-242.15909246,0.00023049,2]
[424218161,1780671048000,-3553.0,0.00024121,2]
[424218159,1780671048000,-5757.140333,0.00024,2]
[424218158,1780671048000,-500.0,0.00024,2]
[424218157,1780671048000,-215.77576141,0.00024,7]
[424218160,1780671048000,-746.0,0.00024023,2]
[424218163,1780671048000,-1273.0,0.00024121,2]
[424218162,1780671048000,-1357.0,0.00024121,2]
[424218155,1780671048000,-1918.0,0.00024,2]
[424218152,1780671048000,-704.0,0.00024,2]
[424218164,1780671048000,-1227.0,0.00024121,2]
[424218154,1780671048000,-917.0,0.00024,2]
[424218156,1780671048000,-461.0,0.00024,2]
[424218166,1780671048000,-419.0,0.00024121,2]
[424218178,1780671048000,-2586.85809042,0.00024145,2]
[424218175,1780671048000,-11878.85235123,0.00024145,2]
[424218176,1780671048000,-260.4103811,0.00024145,2]
[424218173,1780671048000,-1776.30922209,0.00024145,2]
[424218172,1780671048000,-200.0,0.00024145,2]
[424218167,1780671048000,-260.4103811,0.00024145,2]
[424218174,1780671048000,-348.0827721,0.00024145,2]
[424218169,1780671048000,-200.0,0.00024145,2]
[424218168,1780671048000,-151.0,0.00024145,2]
[424218170,1780671048000,-217.15233878,0.00024145,2]
[424218186,1780671048000,-3994.5,0.00024324,2]
[424218184,1780671048000,-3368.74,0.00024174,2]
[424218185,1780671048000,-501.98780834,0.0002424,2]
[424218153,1780671048000,-3786.0,0.00024,2]
[424218165,1780671048000,-933.0,0.00024121,2]
[424218151,1780671048000,-463.0,0.00024,2]
[424218127,1780671048000,-251.11897888,0.00023597,2]
[424218147,1780671048000,-2221.0,0.00024,2]
[424218181,1780671048000,-862.28603014,0.00024145,2]
[424218122,1780671048000,-11455.01673214,0.00023597,2]
[424218123,1780671048000,-251.11897888,0.00023597,2]
[424218124,1780671048000,-500.0,0.00023597,2]
[424218125,1780671048000,-2494.55939288,0.00023597,2]
[424218126,1780671048000,-200.0,0.00023597,2]
[424218131,1780671048000,-900.0,0.00023671,2]
[424218133,1780671048000,-900.0,0.00023671,2]
[424218129,1780671048000,-151.0,0.00023597,2]
[424218132,1780671048000,-900.0,0.00023671,2]
[424218128,1780671048000,-831.51979762,0.00023597,2]
[424218130,1780671048000,-900.0,0.00023671,2]
[424218134,1780671048000,-900.0,0.00023671,2]
[424218135,1780671048000,-900.0,0.00023671,2]
[424218136,1780671048000,-900.0,0.00023671,2]
[424218137,1780671048000,-900.0,0.00023671,2]
[424218138,1780671048000,-900.0,0.00023671,2]
[424218149,1780671048000,-535.0,0.00024,2]
[424218140,1780671048000,-17709.0,0.00023818,2]
[424218150,1780671048000,-3475.0,0.00024,2]
[424218142,1780671048000,-500.0,0.00023995,14]
[424218139,1780671048000,-818.0,0.00023671,2]
[424218141,1780671048000,-2533.0,0.00023908,5]
[424218144,1780671048000,-717.0,0.00024,2]
[424218145,1780671048000,-684.0,0.00024,2]
[424218143,1780671048000,-382.0,0.00024,2]
[424218146,1780671048000,-1604.0,0.00024,2]
[424218148,1780671048000,-910.0,0.00024,2]
[424218179,1780671048000,-200.0,0.00024145,2]
[424218171,1780671048000,-924.60877283,0.00024145,2]
[424218183,1780671048000,-365.3,0.00024174,2]
[424218215,1780671048000,-1051.99987108,0.00024921,2]
[424218218,1780671048000,-233.5188934,0.00024964,2]
[424218219,1780671048000,-382.0,0.00025,2]
[424218214,1780671048000,-1314.09,0.000248,7]
[424218222,1780671048000,-1604.0,0.00025,2]
[424218220,1780671048000,-719.51531788,0.00025,2]
[424218221,1780671048000,-687.97008557,0.00025,2]
[424218223,1780671048000,-2237.0,0.00025,2]
[424218225,1780671048000,-538.71455908,0.00025,2]
[424218224,1780671048000,-922.41011367,0.00025,2]
[424218226,1780671048000,-3488.10499114,0.00025,2]
[424218227,1780671048000,-482.38328777,0.00025,2]
[424218233,1780671048000,-175.64,0.00025,2]
[424218228,1780671048000,-704.10012467,0.00025,2]
[424218234,1780671048000,-175.64,0.00025,2]
[424218229,1780671048000,-3791.35156959,0.00025,2]
[424218236,1780671048000,-175.64,0.00025,2]
[424218231,1780671048000,-1925.05141722,0.00025,2]
[424218232,1780671048000,-475.8172967,0.00025,2]
[424218237,1780671048000,-175.64,0.00025,2]
[424218230,1780671048000,-927.89084215,0.00025,2]
[424218235,1780671048000,-175.64,0.00025,2]
[424218239,1780671048000,-175.64,0.00025,2]
[424218242,1780671048000,-175.64,0.00025,2]
[424218240,1780671048000,-175.64,0.00025,2]
[424218238,1780671048000,-175.64,0.00025,2]
[424218241,1780671048000,-175.64,0.00025,2]
[424218217,1780671048000,-186.98671442,0.00024964,2]
[424218216,1780671048000,-168.3888056,0.00024964,2]
[424218187,1780671048000,-175.73813907,0.00024384,2]
[424218212,1780671048000,-315.0,0.000247,2]
[424218177,1780671048000,-500.0,0.00024145,2]
[424218180,1780671048000,-260.4103811,0.00024145,2]
[424218182,1780671048000,-151.0,0.00024145,2]
[424218189,1780671048000,-6010.95,0.00024658,2]
[424218199,1780671048000,-200.0,0.00024693,2]
[424218243,1780671048000,-1100.0,0.00025064,2]
[424218200,1780671048000,-1842.0326633,0.00024693,2]
[424218213,1780671048000,-1997.75,0.00024795,7]
[424218190,1780671048000,-6010.95,0.00024658,2]
[424218191,1780671048000,-161.02,0.00024658,2]
[424218195,1780671048000,-151.0,0.00024693,2]
[424218193,1780671048000,-512.46,0.00024658,2]
[424218198,1780671048000,-958.81929743,0.00024693,2]
[424218194,1780671048000,-270.0455652,0.00024693,2]
[424218188,1780671048000,-220.0,0.00024402,2]
[424218197,1780671048000,-225.18697532,0.00024693,2]
[424218192,1780671048000,-1000.0,0.00024658,2]
[424218211,1780671048000,-1000.0,0.000247,2]
[424218210,1780671048000,-309.0,0.000247,2]
[424218209,1780671048000,-151.0,0.00024693,2]
[424218202,1780671048000,-12318.36988822,0.00024693,2]
[424218206,1780671048000,-200.0,0.00024693,2]
[424218207,1780671048000,-894.19061325,0.00024693,2]
[424218204,1780671048000,-500.0,0.00024693,2]
[424218205,1780671048000,-2682.57183977,0.00024693,2]
[424218203,1780671048000,-270.0455652,0.00024693,2]
[424218201,1780671048000,-360.96183466,0.00024693,2]
[424218196,1780671048000,-200.0,0.00024693,2]
[424218208,1780671048000,-270.0455652,0.00024693,2]
[424218285,1780671049000,-242.15909246,0.00025789,2]
[424218284,1780671049000,-1031.08454906,0.00025789,2]
[424218281,1780671049000,-290.3986294,0.00025789,2]
[424218282,1780671049000,-151.0,0.00025789,2]
[424218279,1780671049000,-365.3,0.00025786,2]
[424218270,1780671049000,-1278.48651852,0.00025286,2]
[424218280,1780671049000,-3368.74,0.00025786,2]
[424218286,1780671049000,-200.0,0.00025789,2]
[424218287,1780671049000,-1980.8648231,0.00025789,2]
[424218277,1780671049000,-293.0,0.00025561,2]
[424218276,1780671049000,-150.0,0.00025561,2]
[424218278,1780671049000,-2000.0,0.00025675,7]
[424218283,1780671049000,-200.0,0.00025789,2]
[424218309,1780671049000,-621.78829552,0.00026335,2]
[424218290,1780671049000,-290.3986294,0.00025789,2]
[424218299,1780671049000,-153.6430669,0.00025969,2]
[424218295,1780671049000,-290.3986294,0.00025789,2]
[424218292,1780671049000,-200.0,0.00025789,2]
[424218291,1780671049000,-500.0,0.00025789,2]
[424218297,1780671049000,-400.0,0.000259,9]
[424218289,1780671049000,-13246.79310833,0.00025789,2]
[424218300,1780671049000,-550.0,0.00026,2]
[424218296,1780671049000,-151.0,0.00025789,2]
[424218298,1780671049000,-227.7776735,0.00025969,2]
[424218293,1780671049000,-961.58486558,0.00025789,2]
[424218294,1780671049000,-2884.75459676,0.00025789,2]
[424218269,1780671049000,-151.0,0.00025241,2]
[424218288,1780671049000,-388.16716718,0.00025789,2]
[424218268,1780671049000,-280.03725111,0.00025241,2]
[424218263,1780671049000,-280.03725111,0.00025241,2]
[424218266,1780671049000,-927.27566594,0.00025241,2]
[424218301,1780671049000,-684.9112303,0.00026024,2]
[424218250,1780671049000,-1100.0,0.00025064,2]
[424218251,1780671049000,-1100.0,0.00025064,2]
[424218249,1780671049000,-1100.0,0.00025064,2]
[424218245,1780671049000,-1100.0,0.00025064,2]
[424218248,1780671049000,-1100.0,0.00025064,2]
[424218246,1780671049000,-1100.0,0.00025064,2]
[424218244,1780671049000,-1100.0,0.00025064,2]
[424218247,1780671049000,-1100.0,0.00025064,2]
[424218252,1780671049000,-1064.0,0.00025064,2]
[424218253,1780671049000,-12898.39,0.00025118,7]
[424218256,1780671049000,-200.0,0.00025241,2]
[424218255,1780671049000,-151.0,0.00025241,2]
[424218254,1780671049000,-280.03725111,0.00025241,2]
[424218258,1780671049000,-994.29561143,0.00025241,2]
[424218261,1780671049000,-374.31742255,0.00025241,2]
[424218257,1780671049000,-233.5188934,0.00025241,2]
[424218262,1780671049000,-12774.14957409,0.00025241,2]
[424218259,1780671049000,-200.0,0.00025241,2]
[424218260,1780671049000,-1910.18787185,0.00025241,2]
[424218264,1780671049000,-500.0,0.00025241,2]
[424218272,1780671049000,-607.94995298,0.00025561,2]
[424218265,1780671049000,-200.0,0.00025241,2]
[424218275,1780671049000,-150.0,0.00025561,2]
[424218274,1780671049000,-150.0,0.00025561,2]
[424218273,1780671049000,-150.0,0.00025561,2]
[424218271,1780671049000,-168.28,0.00025548,2]
[424218267,1780671049000,-2781.82699784,0.00025241,2]
[424218302,1780671049000,-152.05774309,0.00026046,2]
[424218304,1780671049000,-1388.7407532,0.00026176,7]
[424218306,1780671049000,-3994.5,0.00026296,2]
[424218339,1780671049000,-167.0,0.00027,7]
[424218347,1780671049000,-1400.0,0.00027105,2]
[424218348,1780671049000,-1400.0,0.00027105,2]
[424218342,1780671049000,-1400.0,0.00027105,2]
[424218338,1780671049000,-1314.09,0.000269,7]
[424218341,1780671049000,-1400.0,0.00027105,2]
[424218340,1780671049000,-215.77576141,0.00027,7]
[424218345,1780671049000,-1400.0,0.00027105,2]
[424218344,1780671049000,-1400.0,0.00027105,2]
[424218346,1780671049000,-1400.0,0.00027105,2]
[424218343,1780671049000,-1400.0,0.00027105,2]
[424218350,1780671049000,-1370.0,0.00027105,2]
[424218349,1780671049000,-1400.0,0.00027105,2]
[424218336,1780671049000,-260.4103811,0.00026885,2]
[424218351,1780671049000,-3553.0,0.00027121,2]
[424218353,1780671049000,-1273.0,0.00027121,2]
[424218354,1780671049000,-1227.0,0.00027121,2]
[424218352,1780671049000,-1357.0,0.00027121,2]
[424218360,1780671049000,-500.0,0.00027396,2]
[424218356,1780671049000,-419.0,0.00027121,2]
[424218358,1780671049000,-200.0,0.00027274,2]
[424218357,1780671049000,-525.0,0.00027137,2]
[424218361,1780671049000,-500.0,0.00027396,2]
[424218355,1780671049000,-933.0,0.00027121,2]
[424218312,1780671049000,-151.0,0.00026337,2]
[424218362,1780671049000,-1036.17,0.00027396,2]
[424218364,1780671049000,-1000.0,0.00027397,20]
[424218365,1780671049000,-1022.33,0.00027397,2]
[424218359,1780671049000,-200.0,0.00027318,2]
[424218333,1780671049000,-12898.39,0.00026824,7]
[424218363,1780671049000,-1500.0,0.00027397,2]
[424218332,1780671049000,-186.18115721,0.00026788,2]
[424218305,1780671049000,-17638.0,0.000262,2]
[424218303,1780671049000,-1274.94,0.00026046,2]
[424218310,1780671049000,-775.4783256,0.00026335,2]
[424218311,1780671049000,-301.14337869,0.00026337,2]
[424218307,1780671049000,-317.82972749,0.00026333,2]
[424218308,1780671049000,-242.15909246,0.00026333,2]
[424218314,1780671049000,-1069.23467737,0.00026337,2]
[424218321,1780671049000,-500.0,0.00026337,2]
[424218323,1780671049000,-200.0,0.00026337,2]
[424218324,1780671049000,-2991.49051684,0.00026337,2]
[424218313,1780671049000,-200.0,0.00026337,2]
[424218325,1780671049000,-301.14337869,0.00026337,2]
[424218315,1780671049000,-251.11897888,0.00026337,2]
[424218322,1780671049000,-997.16350561,0.00026337,2]
[424218317,1780671049000,-2054.15682156,0.00026337,2]
[424218330,1780671049000,-477.08843399,0.00026573,2]
[424218316,1780671049000,-200.0,0.00026337,2]
[424218329,1780671049000,-200.0,0.00026543,2]
[424218335,1780671049000,-1108.79636043,0.00026885,2]
[424218337,1780671049000,-417.4229384,0.00026885,2]
[424218328,1780671049000,-498.99321736,0.00026423,2]
[424218334,1780671049000,-200.0,0.00026885,2]
[424218327,1780671049000,-500.0,0.00026384,2]
[424218326,1780671049000,-151.0,0.00026337,2]
[424218319,1780671049000,-5141.04808286,0.00026337,2]
[424218320,1780671049000,-301.14337869,0.00026337,2]
[424218318,1780671049000,-402.52935237,0.00026337,2]
[424218331,1780671049000,-1455.9108136,0.00026721,2]
[424218405,1780671050000,-170.42416313,0.00028072,2]
[424218404,1780671050000,-176.59000926,0.00028072,2]
[424218403,1780671050000,-169.69054782,0.00028072,2]
[424218401,1780671050000,-360.75753956,0.00028048,2]
[424218389,1780671050000,-198.25256231,0.00027783,2]
[424218396,1780671050000,-280.03725111,0.00027981,2]
[424218399,1780671050000,-600.0,0.00028,2]
[424218388,1780671050000,-151.72563893,0.00027766,2]
[424218402,1780671050000,-188.79924246,0.00028072,2]
[424218393,1780671050000,-180.0,0.00027857,2]
[424218394,1780671050000,-200.0,0.00027981,2]
[424218420,1780671050000,-674.29,0.00028358,2]
[424218408,1780671050000,-200.0,0.00028093,2]
[424218413,1780671050000,-500.0,0.00028274,2]
[424218412,1780671050000,-3994.5,0.00028267,2]
[424218406,1780671050000,-157.36224513,0.00028072,2]
[424218411,1780671050000,-525.0,0.00028205,3]
[424218407,1780671050000,-177.11364254,0.00028072,2]
[424218409,1780671050000,-153.86171215,0.00028162,2]
[424218425,1780671050000,-2307.61,0.00028438,30]
[424218415,1780671050000,-909.58,0.000283,7]
[424218414,1780671050000,-1051.67,0.000283,14]
[424218416,1780671050000,-1239.18,0.000283,7]
[424218398,1780671050000,-215.77576141,0.00028,10]
[424218410,1780671050000,-5347.74,0.000282,30]
[424218391,1780671050000,-189.5562012,0.00027783,2]
[424218387,1780671050000,-266.52809746,0.00027766,2]
[424218390,1780671050000,-162.09476767,0.00027783,2]
[424218419,1780671050000,-688.69,0.00028355,2]
[424218374,1780671050000,-200.0,0.00027433,2]
[424218373,1780671050000,-1239.18,0.000274,7]
[424218366,1780671050000,-528.75,0.00027397,2]
[424218367,1780671050000,-300.0,0.00027397,2]
[424218370,1780671050000,-477.08843399,0.00027397,2]
[424218368,1780671050000,-512.46,0.00027397,2]
[424218371,1780671050000,-1051.67,0.000274,14]
[424218372,1780671050000,-909.58,0.000274,7]